bitfinex/quotes_ETHUSD_20220111
["timestamp","ask_amount","ask_price","bid_price","bid_amount"]
[1641913383226,1.5998408,3127.1,3126.8,0.00170527]
[1641913383425,0.79986,3126.9,3126.4,0.00397896]
[1641913383624,0.3,3126.8,3126.4,0.00397896]
[1641913383828,0.3,3126.8,3126.3,0.00454738]
[1641913384027,0.6,3126.8,3126.3,0.00454738]
[1641913384226,0.6,3126.8,3126.0,1.41530794]
[1641913384227,0.6,3126.8,3126.1,0.00568423]
[1641913384427,0.3,3126.8,3126.1,0.00568423]
[1641913384629,1.60008,3126.6,3126.1,0.00568423]
[1641913384828,0.80006,3126.3,3126.1,0.00568423]
[1641913385030,0.7231242,3126.3,3125.9,0.00682108]
[1641913385430,0.7231242,3126.3,3125.9,2.32664526]
[1641913385634,2.39986,3127.1,3126.2,0.01228722]
[1641913385833,0.00284212,3127.6,3126.3,0.04507078]
[1641913386054,0.00284212,3127.6,3126.3,0.04961816]
[1641913386248,0.0022737,3127.5,3126.8,1.29883073]
[1641913386450,0.0022737,3127.5,3127.3,1.23158056]
[1641913386650,0.00170527,3127.4,3127.3,1.23158056]
[1641913387249,0.83494071,3128.7,3127.3,3.68568818]
[1641913387447,4.231,3129.4,3127.3,3.68568818]
[1641913387448,4.231,3129.4,3128.6,1.10453903]
[1641913387650,0.385,3129.4,3128.6,1.10453903]
[1641913387851,0.83473001,3129.5,3128.7,0.026792]
[1641913387852,0.7993025,3129.2,3128.7,0.026792]
[1641913388150,1.59846,3129.3,3128.6,1.10453903]
[1641913388355,0.01136847,3129.4,3128.7,2.39651909]
[1641913388551,0.01023163,3129.2,3128.6,1.10453903]
[1641913388753,0.01080005,3129.3,3128.7,1.31343597]
[1641913388950,0.0096632,3129.1,3128.7,3.67310671]
[1641913389151,0.01023163,3129.2,3128.6,1.10453903]
[1641913389352,0.00909478,3129.0,3128.6,1.10453903]
[1641913389551,0.00909478,3129.0,3128.1,0.01291903]
[1641913389552,0.8088932,3129.1,3128.1,0.01291903]
[1641913389799,0.80779636,3128.9,3128.1,0.01291903]
[1641913389999,0.79927,3128.9,3128.0,2.34352135]
[1641913390203,0.00795793,3128.8,3128.4,1.5416933]
[1641913390400,0.00795793,3128.8,3128.0,2.34352135]
[1641913390601,0.00738951,3128.7,3128.5,1.4125852]
[1641913391005,0.00682109,3128.6,3128.5,1.4125852]
[1641913391405,0.00682109,3128.6,3128.5,4.7]
[1641913392206,0.00682109,3128.6,3128.5,6.55]
[1641913392407,0.00682109,3128.6,3128.5,13.31566338]
[1641913392806,0.00682109,3128.6,3128.5,12.12278229]
[1641913394149,2.109e-05,3128.6,3128.5,31.93573327]
[1641913394350,2.109e-05,3128.6,3128.5,29.46227617]
[1641913394952,2.109e-05,3128.6,3128.5,33.53290113]
[1641913395557,2.109e-05,3128.6,3128.5,34.33173113]
[1641913395955,0.5,3132.3,3128.5,34.33173113]
[1641913395956,1.59742,3131.3,3128.7,18.8]
[1641913396159,1.59742,3131.3,3129.5,0.01277882]
[1641913396356,0.00909477,3130.2,3129.5,18.81277882]
[1641913396554,0.00909477,3130.2,3129.6,4.38526142]
[1641913396756,0.00852635,3130.1,3129.7,1.29289947]
[1641913397054,0.00795792,3130.0,3129.8,2.77209183]
[1641913397309,5.792e-05,3130.0,3129.8,2.77209183]
[1641913397507,8.95e-05,3129.9,3129.8,2.77209183]
[1641913397907,0.00583166,3132.3,3129.8,3.08413606]
[1641913398107,0.00583166,3132.3,3130.5,18.81291587]
[1641913398308,0.00526324,3132.2,3130.7,0.02236992]
[1641913398515,0.00526324,3132.2,3132.0,1.29668144]
[1641913398714,6.09,3134.0,3132.0,3.45576385]
[1641913398715,0.00469482,3132.1,3132.0,3.45576385]
[1641913399607,0.00469482,3132.1,3132.0,2.15908241]
[1641913399808,0.00469482,3132.1,3132.0,1.38458241]
[1641913400207,0.00469482,3132.1,3131.6,2.47888653]
[1641913400411,0.00469482,3132.1,3130.8,0.00269469]
[1641913400608,0.79851,3131.6,3130.8,2.35472786]
[1641913400808,0.79851,3131.6,3131.0,0.00155784]
[1641913401052,0.00128428,3131.5,3131.0,0.00155784]
[1641913401454,0.00128428,3131.5,3131.4,5.14698809]
[1641913402050,0.00128428,3131.5,3131.0,0.00155784]
[1641913402451,1.59875428,3131.5,3130.8,0.00269469]
[1641913402651,2.19875428,3131.5,3130.7,0.00326311]
[1641913403051,1.32511132,3131.3,3130.7,0.00326311]
[1641913403251,1.60128428,3131.5,3130.7,0.00326311]
[1641913403252,0.79881,3131.1,3130.7,0.00326311]
[1641913403451,0.79881,3131.1,3130.2,0.00610523]
[1641913403452,2.39644,3130.8,3130.2,0.00610523]
[1641913403957,1.89762,3130.8,3130.2,0.00610523]
[1641913404152,1.84762,3130.8,3130.2,0.00610523]
[1641913404351,2.94643,3130.8,3130.2,0.00610523]
[1641913404551,0.79881,3130.7,3130.2,0.00610523]
[1641913404808,0.79881,3130.7,3129.8,0.00837892]
[1641913405009,1.98259,3131.3,3129.5,2.50103733]
[1641913405010,3.19478,3131.6,3130.5,0.02878569]
[1641913405210,3.19478,3131.6,3130.4,1.19776055]
[1641913405407,0.3,3131.3,3130.6,0.00383154]
[1641913405608,3.19478,3131.6,3130.5,0.00439996]
[1641913405809,0.79994428,3131.5,3130.9,4.34094569]
[1641913406009,0.3,3131.3,3130.5,0.00439996]
[1641913406207,0.3,3131.3,3130.0,2.39481588]
[1641913406208,0.3,3131.3,3131.0,0.00155784]
[1641913406407,0.6,3131.3,3130.1,0.00667365]
[1641913406610,0.6,3131.4,3130.1,0.00667365]
[1641913406807,0.30128428,3131.5,3130.1,0.00667365]
[1641913407008,1.46419623,3131.3,3130.1,1.39830545]
[1641913407209,0.79882,3130.9,3129.6,0.00951577]
[1641913407409,1.46419623,3131.3,3130.2,0.00610523]
[1641913407410,0.385,3130.8,3130.2,0.00610523]
[1641913407611,18.8,3131.1,3129.5,4.06896377]
[1641913407612,6.935,3130.7,3129.5,4.06896377]
[1641913407812,0.385,3130.6,3129.6,0.00341054]
[1641913408010,1.68727369,3130.6,3129.6,0.00341054]
[1641913408210,0.00170527,3130.5,3129.6,0.00341054]
[1641913408446,0.00170527,3130.5,3129.5,4.06896377]
[1641913408447,1.5983,3130.1,3129.5,4.06896377]
[1641913408649,0.7991872,3129.8,3128.8,5.45611662]
[1641913408849,0.385,3130.0,3128.8,5.45611662]
[1641913408850,1.59838,3129.6,3128.9,2.44248728]
[1641913409047,0.3,3129.5,3128.9,2.45895822]
[1641913409252,0.3,3129.5,3128.9,0.01647094]
[1641913409448,0.3,3129.5,3129.0,1.31904911]
[1641913409449,1.09919,3129.5,3129.0,1.31904911]
[1641913409849,1.09919,3129.5,3129.3,1.43829087]
[1641913410047,1.09919,3129.5,3129.1,0.00284212]
[1641913410247,1.09919,3129.5,3129.4,0.00113685]
[1641913410449,0.3,3129.5,3129.1,0.00284212]
[1641913410647,0.3,3129.5,3128.3,2.45598709]
[1641913410648,0.79931,3129.3,3128.4,0.00682108]
[1641913410848,0.3,3129.5,3128.4,0.00682108]
[1641913410849,2.39792,3129.0,3128.4,0.00682108]
[1641913411049,0.3,3128.9,3128.4,0.00682108]
[1641913411451,2.69792,3129.0,3128.5,4.05185951]
[1641913411452,2.99792,3129.0,3128.5,4.05185951]
[1641913411648,0.7993047,3129.3,3128.6,6.55]
[1641913411854,0.79931,3129.0,3128.5,2.71422848]
[1641913412050,1.59891,3128.8,3128.6,2.71422848]
[1641913412299,2.98391,3128.8,3127.6,2.44396668]
[1641913412498,2.98391,3128.8,3127.4,3.27515822]
[1641913412499,0.79957,3128.1,3127.4,3.27515822]
[1641913412698,0.79957,3128.1,3127.8,0.00454739]
[1641913413097,0.3,3128.0,3127.8,0.00454739]
[1641913413499,0.3,3128.0,3127.9,2.71476901]
[1641913413900,0.3,3128.0,3127.9,2.71874798]
[1641913414099,0.3,3128.0,3127.9,0.00397897]
[1641913414507,0.00170527,3128.9,3127.9,2.71875587]
[1641913414705,0.00170527,3128.9,3128.2,0.01250997]
[1641913414901,0.00113684,3128.8,3128.2,0.01250997]
[1641913415105,0.00113684,3128.8,3128.3,0.00170528]
[1641913415306,0.00454738,3129.4,3128.3,1.37268912]
[1641913415502,0.00454738,3129.4,3128.5,1.35893355]
[1641913415702,0.00397896,3129.3,3128.5,1.35893355]
[1641913415948,0.79918,3129.2,3128.5,1.35893355]
[1641913416144,0.80259054,3129.2,3128.5,1.35893355]
[1641913416345,0.00284211,3129.1,3128.5,1.35893355]
[1641913416744,0.00227369,3129.0,3128.5,1.35893355]
[1641913417148,0.79918,3129.2,3128.5,1.35893355]
[1641913417149,0.00170527,3128.9,3128.5,1.35893355]
[1641913417453,0.00113684,3128.8,3128.5,1.35893355]
[1641913417647,0.00113684,3128.8,3128.6,2.36319318]
[1641913417848,5.9741,3130.7,3128.6,2.36319318]
[1641913417849,0.00284211,3129.1,3128.6,2.36319318]
[1641913418046,0.00284211,3129.1,3128.9,0.01254581]
[1641913418249,0.00117369,3129.0,3128.9,0.01254581]
[1641913418450,1.59761,3131.1,3129.1,18.8]
[1641913418648,1.59761,3131.1,3130.3,1.38995967]
[1641913418649,1.59643631,3131.1,3130.3,1.38995967]
[1641913418848,1.59758,3130.8,3129.6,0.13819997]
[1641913419152,0.0096632,3130.7,3129.6,0.13819997]
[1641913419549,0.00909477,3130.6,3129.3,1.1877]
[1641913419805,0.00909477,3130.6,3129.5,1.50711528]
[1641913419806,0.7990325,3130.2,3129.5,1.50711528]
[1641913420001,0.79908,3130.0,3129.5,1.50711528]
[1641913420205,0.79906,3129.9,3129.5,1.50711528]
[1641913420400,1.10417581,3129.9,3129.3,1.1877]
[1641913420603,0.30454739,3129.8,3128.9,0.01254581]
[1641913421101,0.00397896,3129.7,3129.5,1.33537514]
[1641913421402,0.00341054,3129.6,3129.5,1.33537514]
[1641913422002,2.39696,3130.7,3129.6,0.05280537]
[1641913422202,1.5978,3130.4,3129.6,3.88628855]
[1641913422406,1.5978,3130.4,3129.7,2.36590216]
[1641913422600,1.5978,3130.4,3129.6,1.50687024]
[1641913422801,2.1978,3130.4,3129.6,1.50687024]
[1641913423000,1.09888,3130.1,3129.6,3.90800033]
[1641913423449,0.00227369,3130.0,3129.6,3.90800033]
[1641913423650,0.00227369,3130.0,3129.6,1.50687024]
[1641913423847,1.59774,3131.1,3129.6,1.50687024]
[1641913423848,5.27e-06,3129.9,3129.7,0.01253626]
[1641913424047,5.27e-06,3129.9,3129.7,1.00959505]
[1641913424248,1.59742,3131.5,3129.8,5.59636987]
[1641913424249,0.79866,3130.9,3129.8,5.59636987]
[1641913424646,0.00512108,3130.8,3129.8,5.59636987]
[1641913424847,0.00512108,3130.8,3129.9,2.71313033]
[1641913425150,0.79877,3131.1,3129.9,2.71313033]
[1641913425151,0.7988,3130.4,3130.0,1.49137531]
[1641913425647,1.59989896,3130.3,3130.0,1.49137531]
[1641913425848,0.00227896,3130.3,3130.0,3.89446189]
[1641913426048,0.00171054,3130.2,3130.0,3.89446189]
[1641913426246,0.00171054,3130.2,3130.1,9.17212972]
[1641913426447,3.19482,3131.9,3130.1,9.17212972]
[1641913426648,3.19482,3131.9,3130.2,0.02564119]
[1641913426848,0.0079632,3131.3,3130.2,1.0]
[1641913427048,0.79858,3130.9,3130.3,2.56521448]
[1641913427501,0.00512108,3130.8,3130.3,2.56521448]
[1641913427706,0.00512108,3130.8,3130.4,2.71291014]
[1641913427904,2.39564,3131.9,3130.7,0.01289228]
[1641913428305,0.00284212,3131.3,3130.5,9.18994846]
[1641913428603,0.79855,3131.1,3130.6,0.00113685]
[1641913428802,0.79855,3131.1,3130.6,1.15821986]
[1641913429006,9.2843,3132.7,3130.7,2.34138593]
[1641913429204,3.19378,3133.0,3130.9,6.55]
[1641913429407,1.0,3133.2,3132.2,0.01203305]
[1641913429604,0.00793453,3133.9,3133.0,1.19187085]
[1641913429605,1.5963,3133.5,3133.0,1.19187085]
[1641913429804,0.01193689,3133.1,3133.0,9.72447915]
[1641913430004,0.01193689,3133.1,3133.0,8.5326083]
[1641913430310,0.01591586,3133.8,3133.0,2.2326083]
[1641913430703,0.00793453,3133.9,3133.0,2.2326083]
[1641913430704,0.01534743,3133.7,3133.0,2.2326083]
[1641913431150,0.00793453,3133.9,3133.0,2.2326083]
[1641913431353,0.00793453,3133.9,3133.2,0.03171747]
[1641913431552,0.00113685,3133.8,3133.1,2.40865518]
[1641913431748,0.00113685,3133.8,3133.3,0.00170527]
[1641913431952,0.00113685,3133.8,3133.2,0.0022737]
[1641913432350,0.00113685,3133.8,3133.0,1.49270631]
[1641913432351,0.00113685,3133.8,3133.6,1.11439243]
[1641913432552,0.00113685,3133.8,3133.1,0.00284212]
[1641913433151,0.00113685,3133.8,3132.7,0.00511581]
[1641913433353,0.79813,3133.5,3132.7,2.71624736]
[1641913433553,1.39813,3133.5,3133.0,1.02945524]
[1641913433953,1.39813,3133.5,3133.1,0.00284212]
[1641913434554,1.5965,3133.4,3133.1,0.00284212]
[1641913434807,0.01673952,3133.3,3133.1,0.00284212]
[1641913435005,1.5965,3133.4,3133.1,0.00284212]
[1641913435305,1.5965,3133.4,3132.4,0.00682108]
[1641913435512,0.6,3133.2,3132.4,0.00682108]
[1641913435704,0.79824,3133.1,3132.2,0.00795793]
[1641913435910,0.3,3133.1,3132.2,0.00795793]
[1641913436206,1.26781227,3132.9,3132.2,0.00795793]
[1641913436406,0.685,3132.8,3132.2,0.00795793]
[1641913436607,0.79846,3132.7,3132.2,0.00795793]
[1641913436806,0.79846,3132.7,3131.6,0.01136847]
[1641913436807,0.7986,3132.2,3131.6,0.01136847]
[1641913437006,0.79859,3132.1,3131.6,0.01136847]
[1641913437207,0.79859,3132.1,3132.0,1.09047832]
[1641913437406,0.79859,3132.1,3131.5,1.3648331]
[1641913437607,0.79854,3131.9,3131.5,1.3648331]
[1641913437907,0.6,3131.8,3131.5,1.3648331]
[1641913438111,0.3,3131.8,3131.5,1.3648331]
[1641913438308,0.3,3131.9,3131.5,1.3648331]
[1641913438554,1.59685,3132.6,3131.1,1.01628051]
[1641913438748,1.59685,3132.6,3132.0,0.88798322]
[1641913438947,1.59702,3132.4,3132.0,0.88798322]
[1641913439348,0.7985,3132.3,3132.0,0.88798322]
[1641913440050,0.79848,3132.4,3132.0,0.88798322]
[1641913440449,2.39526,3132.8,3132.0,0.88798322]
[1641913440655,0.79836,3132.8,3132.0,0.88798322]
[1641913441248,2.3957,3133.0,3131.7,1.27896952]
[1641913441450,0.79842,3132.6,3131.7,1.27896952]
[1641913441649,0.7985,3132.3,3131.8,0.01023162]
[1641913442321,1.59703,3132.3,3132.1,1.02476678]
[1641913442518,0.3,3132.2,3132.1,1.02476678]
[1641913442719,1.59703,3132.3,3132.1,1.02476678]
[1641913442919,6.09,3133.5,3132.2,2.3492484]
[1641913443121,1.5965,3133.4,3132.3,0.07299907]
[1641913443323,1.5965,3133.4,3132.2,0.00795793]
[1641913443525,0.79829,3133.0,3132.4,0.00682108]
[1641913443719,0.79829,3133.0,3132.0,3.69269668]
[1641913443720,1.00461285,3133.0,3132.1,0.00852635]
[1641913444124,1.00461285,3133.0,3132.9,7.85161618]
[1641913444320,1.285e-05,3133.0,3132.9,8.83575937]
[1641913444522,1.285e-05,3133.0,3132.9,7.56237897]
[1641913445722,1.285e-05,3133.0,3132.9,6.88897897]
[1641913446657,1.285e-05,3133.0,3132.9,9.39116371]
[1641913446852,1.285e-05,3133.0,3132.9,6.88897897]
[1641913447051,1.285e-05,3133.0,3132.9,9.35338461]
[1641913447452,1.285e-05,3133.0,3132.9,6.88897897]
[1641913447652,1.285e-05,3133.0,3132.9,0.38897897]
[1641913447852,1.285e-05,3133.0,3132.9,0.00397897]
[1641913448253,1.285e-05,3133.0,3132.5,0.00625266]
[1641913448456,1.285e-05,3133.0,3132.9,6.0942362]
[1641913448654,1.285e-05,3133.0,3132.5,0.00625266]
[1641913448853,1.285e-05,3133.0,3132.9,0.00397897]
[1641913449053,1.285e-05,3133.0,3132.5,0.00625266]
[1641913449253,1.285e-05,3133.0,3132.3,0.00738951]
[1641913449453,1.285e-05,3133.0,3132.1,0.00852635]
[1641913449704,1.285e-05,3133.0,3132.8,1.10391807]
[1641913449903,1.285e-05,3133.0,3132.6,0.05373571]
[1641913450103,1.285e-05,3133.0,3132.9,6.50397897]
[1641913450304,1.285e-05,3133.0,3132.9,6.5]
[1641913450509,1.285e-05,3133.0,3132.9,6.50397897]
[1641913450707,1.59641,3133.7,3132.9,6.50397897]
[1641913450906,0.3,3133.1,3132.9,6.50397897]
[1641913451111,0.3,3133.3,3133.0,0.00341054]
[1641913451309,0.6,3133.3,3133.0,0.00341054]
[1641913451608,0.3,3133.3,3133.0,0.00341054]
[1641913451809,0.3,3133.5,3133.0,0.00341054]
[1641913452009,0.3,3133.7,3133.0,0.00341054]
[1641913452212,0.3,3133.7,3133.6,1.04488541]
[1641913452412,0.00113685,3133.8,3133.6,1.04488541]
[1641913452610,0.00113685,3133.8,3133.6,1.84378541]
[1641913453455,0.00113685,3133.8,3133.7,1.20019997]
[1641913453651,0.00113685,3133.8,3133.7,7.70019997]
[1641913453848,0.9441379,3134.8,3134.3,1.22875226]
[1641913454751,0.9441379,3134.8,3134.3,3.64669371]
[1641913454950,0.007,3135.1,3134.5,6.5]
[1641913455151,0.007,3135.1,3134.7,0.0627556]
[1641913455350,0.007,3135.1,3134.9,6.5]
[1641913455351,0.00682108,3135.0,3134.9,6.5]
[1641913455956,0.00682108,3135.0,3134.9,7.4134363]
[1641913456358,2.108e-05,3135.0,3134.9,10.96409223]
[1641913456557,2.108e-05,3135.0,3134.9,9.50113701]
[1641913456755,2.108e-05,3135.0,3134.9,8.50113701]
[1641913457203,2.108e-05,3135.0,3134.9,11.96409223]
[1641913457403,2.108e-05,3135.0,3134.9,31.14909223]
[1641913457603,2.108e-05,3135.0,3134.9,28.68613701]
[1641913457804,2.108e-05,3135.0,3134.9,10.68340701]
[1641913458207,2.39186,3137.7,3135.1,18.86158892]
[1641913458406,0.90207243,3137.6,3135.7,0.01247583]
[1641913458606,0.90207243,3137.6,3135.8,0.385]
[1641913458607,0.00852635,3136.5,3135.8,0.385]
[1641913459004,0.00795793,3136.4,3135.8,0.385]
[1641913459405,0.0073895,3136.3,3135.8,0.385]
[1641913459610,0.48699341,3139.5,3136.7,0.00795793]
[1641913459807,0.48699341,3139.5,3138.2,0.01220053]
[1641913460006,0.48699341,3139.5,3138.3,0.03922973]
[1641913460412,0.001122,3139.7,3138.6,0.01206052]
[1641913460613,0.47902897,3139.7,3138.6,0.01206052]
[1641913460807,0.47902897,3139.7,3138.6,1.06559642]
[1641913460808,1.24227587,3139.2,3138.6,1.06559642]
[1641913461076,1.24227587,3139.2,3137.9,6.29355522]
[1641913461077,0.81549798,3139.6,3138.0,2.46295522]
[1641913461265,0.01591586,3139.1,3138.1,2.46295522]
[1641913461472,0.01818955,3139.5,3138.4,0.01229482]
[1641913461664,0.47902897,3139.7,3138.1,2.84795522]
[1641913461665,0.01534744,3139.0,3138.1,2.46295522]
[1641913461865,1.41485908,3138.7,3137.9,3.8306]
[1641913462067,1.41485908,3138.7,3137.7,0.13819997]
[1641913462265,1.41485908,3138.7,3137.3,8.8527]
[1641913462266,0.01307374,3138.6,3137.3,3.6837]
[1641913462466,0.79699,3138.1,3137.3,3.6837]
[1641913462666,0.79699,3138.1,3136.9,1.229]
[1641913462866,0.79699,3138.1,3137.0,2.46295522]
[1641913462867,0.0096632,3138.0,3137.0,2.46295522]
[1641913463069,0.0096632,3138.0,3137.4,0.9594087]
[1641913463265,0.00909478,3137.9,3136.7,2.46295522]
[1641913463468,0.00909478,3137.9,3137.0,2.70769521]
[1641913463665,0.00852635,3137.8,3137.0,2.70769521]
[1641913464071,0.00795793,3137.7,3137.0,2.70769521]
[1641913464268,0.00795793,3137.7,3136.8,2.70769521]
[1641913464469,0.00738951,3137.6,3137.2,1.13895919]
[1641913464913,0.00682108,3137.5,3137.2,1.13895919]
[1641913465110,0.00682108,3137.5,3136.8,2.70769521]
[1641913465312,0.00625266,3137.4,3136.8,2.70769521]
[1641913465510,1.21505692,3137.4,3136.8,2.70769521]
[1641913465709,0.00568424,3137.3,3136.8,2.65769521]
[1641913465909,0.00568424,3137.3,3136.6,2.65769521]
[1641913466110,0.79721,3136.9,3136.7,6.51295059]
[1641913466309,0.79721,3136.9,3136.7,6.51636113]
[1641913466511,0.3,3137.3,3136.7,6.51636113]
[1641913466512,1.89447,3137.3,3136.8,0.00284212]
[1641913466913,0.3,3137.3,3136.8,0.00284212]
[1641913467110,0.3,3137.3,3136.9,1.46296356]
[1641913467312,0.3,3137.3,3137.2,1.10680905]
[1641913467510,1.59419,3137.5,3137.2,1.10680905]
[1641913467511,0.6,3137.4,3137.2,1.10680905]
[1641913467910,1.39707,3137.5,3137.2,1.10680905]
[1641913468111,3.1878487,3139.0,3137.4,0.01212008]
[1641913468311,0.79692,3138.1,3137.4,0.01212008]
[1641913468555,0.00170527,3137.6,3137.4,0.01212008]
[1641913468752,0.00170527,3137.6,3137.0,0.00170527]
[1641913468956,0.385,3138.5,3137.0,0.00170527]
[1641913468957,0.00113684,3137.5,3137.0,0.00170527]
[1641913469151,13.36311385,3139.0,3137.0,6.5]
[1641913469152,4.02644033,3139.0,3137.0,6.5]
[1641913469357,0.79705,3137.7,3137.1,2.44705939]
[1641913469553,0.6,3137.7,3137.1,0.00227369]
[1641913469753,4.78763581,3138.4,3137.2,0.00170527]
[1641913469959,4.78763581,3138.4,3137.0,6.5]
[1641913469960,4.78763581,3138.4,3137.1,0.00227369]
[1641913470154,1.26614156,3138.0,3137.1,0.00227369]
[1641913470555,1.26614156,3138.0,3137.0,0.88331901]
[1641913470556,0.79706,3137.7,3137.0,0.88331901]
[1641913470755,0.00570686,3137.4,3137.1,0.00227369]
[1641913471158,1.39709,3137.5,3137.1,0.00227369]
[1641913471461,0.3,3137.5,3136.6,0.39011581]
[1641913471659,0.0022737,3137.9,3136.7,2.46203882]
[1641913471859,0.0022737,3137.9,3136.7,2.42555006]
[1641913472058,0.79687,3138.3,3136.7,2.42555006]
[1641913472059,0.00170527,3137.8,3136.7,3.37498164]
[1641913472306,0.00568423,3137.8,3137.4,1.1676327]
[1641913472505,0.00511581,3137.7,3137.1,1.25433974]
[1641913472906,2.00212283,3138.4,3136.9,8.83138013]
[1641913473105,3.18789,3139.5,3137.3,0.01225563]
[1641913473303,0.00113684,3137.8,3137.4,0.03891325]
[1641913473506,1.59361,3139.5,3137.5,6.5]
[1641913473703,1.59361,3139.5,3137.5,6.50170527]
[1641913474003,1.25676075,3138.9,3137.6,0.00113684]
[1641913474205,0.79694,3138.7,3137.6,0.00113684]
[1641913474603,0.00454739,3138.6,3137.6,0.00113684]
[1641913475004,0.00397897,3138.5,3137.7,0.03615942]
[1641913475205,0.00397897,3138.5,3137.6,0.00113684]
[1641913475403,0.00341054,3138.4,3137.6,0.00113684]
[1641913475608,0.80034054,3138.4,3137.8,0.94519898]
[1641913475806,0.00284212,3138.3,3137.8,0.94519898]
[1641913476056,0.30284212,3138.3,3137.8,0.94519898]
[1641913476356,0.0022737,3138.2,3137.6,0.00113684]
[1641913476756,0.00170527,3138.1,3137.5,6.40113684]
[1641913476962,0.00170527,3138.1,3136.9,7.78969566]
[1641913476963,0.79702,3137.9,3136.9,5.44869566]
[1641913477156,0.79702,3137.9,3136.7,2.12501146]
[1641913477157,1.39702,3137.9,3137.1,0.86956883]
[1641913477356,0.00113684,3137.8,3137.1,2.11089007]
[1641913478358,0.00113684,3137.8,3137.2,2.38776376]
[1641913478759,0.00113684,3137.8,3137.3,0.41393436]
[1641913478958,0.79683,3138.4,3137.8,6.1]
[1641913479160,0.79683,3138.4,3138.0,0.0029228]
[1641913479362,0.79683,3138.4,3137.8,6.1]
[1641913481122,0.53867925,3139.1,3137.9,6.5]
[1641913481320,0.53867925,3139.1,3137.9,6.50397896]
[1641913481517,0.00170527,3138.9,3137.9,6.45341054]
[1641913481718,0.00568424,3139.0,3137.9,6.45341054]
[1641913481919,0.00454739,3138.8,3137.9,1.2649634]
[1641913482122,0.79682,3138.5,3137.8,0.0123483]
[1641913482318,0.3,3138.5,3137.3,2.43359778]
[1641913482518,0.00227369,3138.4,3137.3,2.43359778]
[1641913482718,0.00227369,3138.4,3137.4,0.00341054]
[1641913482918,0.00170527,3138.3,3137.6,0.96666465]
[1641913483321,0.79684,3138.4,3137.8,5.55]
[1641913483553,1.71845886,3139.0,3137.8,5.55]
[1641913483756,0.00113684,3138.4,3137.9,0.00170527]
[1641913484355,0.79704,3138.2,3136.7,1.04480325]
[1641913484556,7.29693,3138.3,3136.9,2.12501146]
[1641913484557,1.21920319,3137.9,3136.9,2.12501146]
[1641913484761,0.00113684,3138.1,3137.2,2.43389001]
[1641913484956,1.5941224,3138.5,3137.2,0.00397897]
[1641913484957,0.79714,3137.8,3137.2,0.00397897]
[1641913485156,0.79714,3137.8,3137.3,0.00341054]
[1641913485355,0.3,3137.7,3137.3,0.00341054]
[1641913485559,1.59427,3137.9,3137.3,0.00341054]
[1641913485560,0.79698,3137.9,3137.6,0.0120145]
[1641913485757,0.00284211,3138.4,3137.6,0.0120145]
[1641913485758,0.00284211,3138.4,3137.7,1.47485302]
[1641913485956,0.00284211,3138.4,3137.8,0.02197761]
[1641913486159,0.00227369,3138.3,3137.7,0.00113685]
[1641913486557,0.00170527,3138.2,3137.7,0.00113685]
[1641913486761,0.00170527,3138.2,3137.9,2.70773097]
[1641913487059,0.79691,3138.3,3137.9,2.70773097]
[1641913487060,0.00113684,3138.1,3138.0,6.03233461]
[1641913487326,0.00113684,3138.1,3138.0,4.55]
[1641913487524,1.59381,3138.5,3138.0,4.55]
[1641913487525,1.59381,3138.5,3138.1,6.5011]
[1641913487723,0.79671,3139.0,3138.2,0.04719591]
[1641913487927,0.00170527,3138.4,3138.2,0.04719591]
[1641913488321,0.79662,3139.5,3138.2,9.20773097]
[1641913488322,0.00113685,3138.3,3138.2,9.20773097]
[1641913488519,0.79662,3139.5,3139.4,7.21821976]
[1641913488722,0.79662,3139.5,3138.2,9.20773097]
[1641913488723,1.59322,3139.6,3138.3,6.5]
[1641913488919,0.00455266,3139.4,3138.3,6.5]
[1641913489118,0.00455266,3139.4,3138.4,0.00113158]
[1641913489319,0.00398424,3139.3,3138.4,0.00113158]
[1641913489518,0.00398424,3139.3,3138.4,1.00113158]
[1641913489720,0.00341581,3139.2,3138.4,1.00113158]
[1641913489925,0.00341581,3139.2,3139.0,1.33759575]
[1641913490119,0.001122,3139.7,3139.0,1.33759575]
[1641913490120,0.001122,3139.7,3139.0,2.22639575]
[1641913490323,0.001122,3139.7,3139.1,0.05107917]
[1641913490519,0.00284212,3139.6,3139.2,0.03059373]
[1641913490723,0.00284212,3139.6,3139.4,0.02975639]
[1641913490963,0.00227369,3139.5,3139.0,1.33759575]
[1641913491364,0.00170527,3139.4,3139.0,1.33759575]
[1641913491566,0.00170527,3139.4,3139.2,2.70685523]
[1641913491761,0.301122,3139.7,3139.2,2.70685523]
[1641913491762,0.00113685,3139.3,3139.2,2.70685523]
[1641913492162,0.00113685,3139.3,3139.2,6.45685523]
[1641913492363,0.00113685,3139.3,3139.2,0.85978986]
[1641913492567,0.00113685,3139.3,3138.5,2.34477784]
[1641913492865,0.00113685,3139.3,3138.6,0.00284212]
[1641913492866,1.09781685,3139.3,3138.6,0.00284212]
[1641913493063,0.3,3139.2,3138.6,0.00284212]
[1641913493264,0.3,3139.2,3138.5,0.01264671]
[1641913493464,1.59452685,3139.3,3138.5,0.01264671]
[1641913493465,0.00113685,3139.3,3138.5,0.01264671]
[1641913493664,0.00113685,3139.3,3138.6,0.00284212]
[1641913493964,0.05321791,3140.3,3138.9,5.5]
[1641913494164,2.48312895,3140.3,3138.6,0.00397897]
[1641913494364,2.48312895,3140.3,3139.0,0.00170527]
[1641913494365,0.79832527,3139.6,3139.0,0.00170527]
[1641913494565,0.79832527,3139.6,3138.6,0.00397897]
[1641913494810,1.5934239,3139.7,3138.6,0.00397897]
[1641913494811,0.79674,3139.2,3138.6,2.71073192]
[1641913495011,0.79677,3139.0,3138.6,2.71073192]
[1641913495215,2.39149684,3139.5,3138.7,0.00341055]
[1641913495411,3.18813684,3139.5,3138.7,0.00341055]
[1641913495613,3.98479804,3139.5,3138.7,0.00341055]
[1641913495810,3.18813684,3139.5,3138.5,2.6229971]
[1641913496011,1.59348,3139.1,3138.6,2.6229971]
[1641913496212,1.84171238,3139.5,3138.7,2.95]
[1641913496411,1.84171238,3139.5,3138.7,0.00397897]
[1641913496611,1.84171238,3139.5,3138.1,1.38715285]
[1641913496612,1.5937668,3139.1,3138.1,1.38715285]
[1641913496812,1.5937668,3139.1,3137.8,2.12501146]
[1641913496813,0.7969908,3138.5,3138.4,2.7069895]
[1641913497011,0.3,3138.5,3138.4,2.7069895]
[1641913497213,0.6,3138.5,3138.4,2.7069895]
[1641913497415,0.3,3138.5,3138.4,2.7069895]
[1641913497617,1.59379,3138.7,3138.4,2.7069895]
[1641913497818,15.4536435,3140.7,3138.5,0.07299907]
[1641913497819,1.59732897,3139.4,3138.5,0.07299907]